bitfinex/quotes_ETHUSD_20220212
["timestamp","ask_amount","ask_price","bid_price","bid_amount"]
[1644670397027,0.00082576,2911.2,2911.0,0.491]
[1644670397327,1.63367746,2911.3,2911.0,0.491]
[1644670398662,1.63367746,2911.3,2911.1,3.21233624]
[1644670398963,1.63367746,2911.3,2911.2,0.491]
[1644670399363,3.09537407,2911.3,2911.2,0.491]
[1644670400171,1.63367746,2911.3,2911.2,0.491]
[1644670400568,1.37269557,2911.3,2911.2,0.491]
[1644670400768,1.37269557,2911.3,2911.2,3.8176129]
[1644670401168,1.37269557,2911.3,2911.2,4.8176129]
[1644670402313,1.37269557,2911.3,2911.2,3.8176129]
[1644670402720,1.37269557,2911.3,2911.2,4.8176129]
[1644670403116,1.37269557,2911.3,2911.2,3.8176129]
[1644670403316,1.37269557,2911.3,2911.2,4.8176129]
[1644670403718,1.37269557,2911.3,2911.2,1.491]
[1644670403916,1.37269557,2911.3,2911.2,0.491]
[1644670405123,1.67269557,2911.3,2911.2,0.491]
[1644670405330,1.37269557,2911.3,2911.2,0.50706576]
[1644670406463,1.67269557,2911.3,2911.2,0.50706576]
[1644670407562,1.37269557,2911.3,2911.2,0.50706576]
[1644670407763,1.37269557,2911.3,2911.2,3.7981984]
[1644670408262,1.37269557,2911.3,2911.2,4.7981984]
[1644670409063,1.37269557,2911.3,2911.2,3.7981984]
[1644670409263,1.67269557,2911.3,2911.2,0.50706576]
[1644670410418,1.37269557,2911.3,2911.2,0.50706576]
[1644670410725,1.67269557,2911.3,2911.2,0.50706576]
[1644670411917,1.37269557,2911.3,2911.2,0.50706576]
[1644670414371,1.67269557,2911.3,2911.2,0.50706576]
[1644670417423,1.65989557,2911.3,2911.2,0.50706576]
[1644670418422,1.37269557,2911.3,2911.2,0.50706576]
[1644670419223,1.67269557,2911.3,2911.2,0.50706576]
[1644670419623,1.37269557,2911.3,2911.2,0.50706576]
[1644670419922,1.37169263,2911.3,2911.2,0.50706576]
[1644670420527,1.67169263,2911.3,2911.2,0.50706576]
[1644670425320,1.37169263,2911.3,2911.2,3.68851983]
[1644670425520,1.37169263,2911.3,2911.2,3.98851983]
[1644670425720,1.37169263,2911.3,2911.2,4.98851983]
[1644670426924,1.37169263,2911.3,2911.2,5.50369104]
[1644670427131,0.0038559,2912.2,2911.4,1.717]
[1644670427330,0.0038559,2912.2,2911.5,3.71603242]
[1644670427524,0.0038559,2912.2,2911.5,4.94043242]
[1644670427724,0.0038559,2912.2,2911.6,1.0]
[1644670428025,0.0038559,2912.2,2911.7,3.75336958]
[1644670428262,0.0038559,2912.2,2911.8,1.3]
[1644670428461,0.00625534,2912.0,2911.9,0.491]
[1644670428662,0.0038559,2912.2,2912.0,0.01612702]
[1644670428869,0.1716,2912.3,2912.1,0.491]
[1644670429166,0.96587297,2912.0,2911.5,4.82090443]
[1644670429363,0.96587297,2912.0,2911.6,0.491]
[1644670429364,1.26587297,2912.0,2911.6,0.491]
[1644670429566,0.96587297,2912.0,2911.7,3.21408685]
[1644670429765,0.96587297,2912.0,2911.8,1.791]
[1644670430371,0.96587297,2912.0,2911.8,0.491]
[1644670430570,0.96587297,2912.0,2911.4,0.491]
[1644670430571,1.26587297,2912.0,2911.4,0.491]
[1644670430768,1.26587297,2912.0,2911.2,0.01606576]
[1644670430972,1.26587297,2912.0,2910.0,5.531e-05]
[1644670430973,0.01254279,2911.3,2910.0,5.531e-05]
[1644670431173,0.01254279,2911.3,2909.2,0.18946601]
[1644670431174,5.0,2910.7,2909.3,0.17452071]
[1644670431375,0.59729388,2910.2,2909.3,0.25292071]
[1644670431572,1.0,2910.9,2909.3,0.25292071]
[1644670431573,0.1718,2910.9,2909.3,0.25292071]
[1644670431774,0.3,2910.2,2909.4,0.6628]
[1644670432016,3.7145,2910.7,2909.4,0.6628]
[1644670432414,3.7145,2910.7,2909.4,1.5219]
[1644670432616,4.68577539,2910.7,2909.7,0.60718634]
[1644670432816,0.3,2910.7,2909.8,1.52187]
[1644670433015,0.3,2910.7,2909.8,1.82187]
[1644670433213,3.5,2911.1,2909.8,1.82187]
[1644670433414,1.46194733,2911.0,2910.1,0.00306516]
[1644670433616,1.46194733,2910.9,2910.1,0.00306516]
[1644670433819,0.3,2911.1,2910.3,0.62266915]
[1644670434023,0.94982866,2911.3,2910.4,0.491]
[1644670434619,0.94982866,2911.3,2910.7,0.00306453]
[1644670434819,1.46172442,2911.2,2910.7,0.00306453]
[1644670435021,1.63332442,2911.2,2910.7,0.00306453]
[1644670435220,1.46172442,2911.1,2910.7,0.00306453]
[1644670435423,1.46172442,2911.0,2910.2,0.491]
[1644670435662,0.3,2911.0,2910.2,0.491]
[1644670435866,0.3,2911.0,2910.8,0.00931045]
[1644670436065,0.64982866,2911.3,2910.8,0.00931045]
[1644670436265,1.46179241,2911.2,2910.8,0.00931045]
[1644670436466,1.76179241,2911.2,2910.8,0.00931045]
[1644670436770,0.64982866,2911.3,2910.2,0.491]
[1644670436771,1.76179241,2911.1,2910.2,0.491]
[1644670436966,0.3,2911.1,2910.9,0.00931034]
[1644670437371,0.3,2911.3,2910.9,0.00931034]
[1644670437771,4.1713,2911.4,2910.9,0.00931034]
[1644670438072,4.1713,2911.4,2910.6,0.491]
[1644670438272,4.1713,2911.4,2911.0,0.00931024]
[1644670438671,0.65035959,2911.3,2911.0,0.00931024]
[1644670439172,0.65035959,2911.3,2910.6,0.491]
[1644670439425,0.65035959,2911.3,2911.0,0.00931019]
[1644670439817,1.46174145,2911.2,2911.0,0.00931019]
[1644670440217,1.76174145,2911.2,2911.0,0.0251147]
[1644670440418,1.46179587,2911.1,2911.0,0.01580451]
[1644670440618,1.46179587,2911.1,2911.0,0.02511475]
[1644670441617,1.46179587,2911.1,2911.0,0.01580451]
[1644670444581,0.3,2911.2,2911.0,0.01580451]
[1644670444774,4.1713,2911.4,2911.0,0.01580451]
[1644670444974,1.46179353,2911.3,2911.0,0.01580451]
[1644670445374,1.46179353,2911.3,2911.1,0.00931013]
[1644670446374,1.46179353,2911.3,2911.0,0.01580451]
[1644670446575,1.46179353,2911.3,2911.1,0.00931013]
[1644670447615,1.46179353,2911.3,2911.0,0.01580451]
[1644670447816,1.46179353,2911.3,2911.1,0.00931013]
[1644670448219,1.76179353,2911.3,2911.1,0.00931013]
[1644670448418,1.46179353,2911.2,2911.1,0.00931013]
[1644670448819,0.3,2911.2,2911.0,0.01580451]
[1644670449022,1.76179353,2911.2,2911.0,0.0251147]
[1644670449219,0.3,2911.2,2911.0,0.0251147]
[1644670449418,0.3,2911.3,2911.0,0.0251147]
[1644670449622,1.46173262,2911.2,2911.0,0.0251147]
[1644670449829,0.3,2911.2,2911.0,0.0251147]
[1644670450023,4.80728154,2911.4,2911.0,0.01580451]
[1644670450224,0.03006091,2910.9,2910.5,0.03724654]
[1644670451067,0.03006091,2910.9,2909.9,0.25]
[1644670451068,1.63358395,2910.8,2909.9,0.25]
[1644670451265,1.46198395,2910.7,2909.5,0.00292071]
[1644670451465,1.46198395,2910.7,2910.6,0.00931066]
[1644670452265,2.03287001,2910.7,2909.6,0.70095782]
[1644670452471,1.46198395,2910.6,2909.3,0.25292071]
[1644670452669,1.93378395,2910.6,2910.5,0.00931071]
[1644670452865,3.06348395,2910.6,2910.5,0.00931071]
[1644670453269,6.67982058,2910.6,2910.5,0.00931071]
[1644670453667,0.69537373,2909.9,2909.3,0.25292071]
[1644670453869,0.69537373,2909.9,2909.3,0.00292071]
[1644670454070,1.5515,2910.6,2909.1,0.00292071]
[1644670454271,3.6804,2910.5,2908.9,0.30292071]
[1644670454519,3.6804,2910.5,2908.9,1.30292071]
[1644670454721,3.6804,2910.5,2908.9,1.86219071]
[1644670454919,3.6804,2910.5,2908.9,1.00292071]
[1644670455128,0.59005529,2910.1,2909.6,0.00931171]
[1644670455320,0.3,2910.1,2909.6,0.00931171]
[1644670455720,3.9804,2910.5,2909.6,0.00931171]
[1644670455921,3.9804,2910.5,2909.3,0.00292071]
[1644670456122,3.9804,2910.5,2909.7,0.00931155]
[1644670456519,0.59308954,2910.3,2909.7,0.00931155]
[1644670456719,0.89308954,2910.3,2909.7,0.00931155]
[1644670456922,3.6804,2910.5,2909.7,0.00931155]
[1644670457121,3.6804,2910.5,2909.3,0.00292071]
[1644670457520,3.6804,2910.5,2909.9,0.00931139]
[1644670457826,1.63400017,2910.4,2909.9,0.00931139]
[1644670458022,0.84557628,2910.4,2909.9,0.00931139]
[1644670458270,1.14557628,2910.4,2909.9,0.00931139]
[1644670458473,1.14557628,2910.4,2909.6,0.59583755]
[1644670458671,0.97377628,2910.4,2910.0,0.00931124]
[1644670459476,0.97377628,2910.4,2909.3,1.00292071]
[1644670459675,0.97377628,2910.4,2909.3,0.00292071]
[1644670459877,0.97377628,2910.4,2910.1,0.00931118]
[1644670460877,0.97377628,2910.4,2909.8,0.01667912]
[1644670461077,0.97377628,2910.4,2910.1,0.00931113]
[1644670461476,3.63366336,2910.3,2910.1,0.00931113]
[1644670461681,0.1718,2910.2,2910.1,0.00931113]
[1644670462113,0.1718,2910.2,2909.8,0.01667912]
[1644670462313,0.1718,2910.2,2910.0,0.00931124]
[1644670462714,0.59531159,2910.1,2910.0,0.00931124]
[1644670463118,0.89531159,2910.1,2910.0,0.00931124]
[1644670463315,0.89531159,2910.1,2909.8,0.01667912]
[1644670463514,0.89531159,2910.1,2909.9,0.0027511]
[1644670464519,0.89531159,2910.1,2909.8,0.01667912]
[1644670464721,3.85961538,2910.0,2909.9,0.00275114]
[1644670464921,0.89531159,2910.1,2909.9,0.00275114]
[1644670465123,3.63345368,2910.0,2909.9,0.00275114]
[1644670465321,3.79468911,2910.0,2909.9,0.00275114]
[1644670465528,5.42893432,2910.0,2909.9,0.00275114]
[1644670465775,5.42893432,2910.0,2909.7,0.01510399]
[1644670465968,5.42893432,2910.0,2909.1,0.00292071]
[1644670465969,3.35,2909.8,2909.4,0.03602486]
[1644670466167,3.35,2909.8,2909.1,0.00292071]
[1644670466168,3.35,2909.6,2909.1,0.00292071]
[1644670466368,0.63955178,2909.4,2909.1,0.00292071]
[1644670466567,0.63955178,2909.4,2908.3,0.25]
[1644670466768,0.93955178,2909.4,2908.1,0.00292071]
[1644670466969,1.11135178,2909.4,2907.9,0.00292071]
[1644670467167,3.54866026,2909.3,2907.9,0.00292071]
[1644670467567,0.3,2909.3,2907.9,0.00292071]
[1644670467766,0.57949739,2908.9,2907.9,0.52439369]
[1644670467968,0.4718,2909.4,2907.9,0.52439369]
[1644670468167,0.3,2908.9,2907.9,0.52439369]
[1644670468379,3.68055555,2909.3,2907.9,0.52439369]
[1644670468668,3.98055555,2909.3,2907.9,0.00292071]
[1644670469722,0.94974863,2908.8,2907.9,0.00292071]
[1644670470523,0.3,2908.8,2908.6,0.01612666]
[1644670470721,0.1718,2909.4,2908.6,0.01612666]
[1644670471524,0.71657193,2909.2,2908.6,0.01612666]
[1644670471725,1.01657193,2909.2,2908.6,0.01612666]
[1644670471923,1.01657193,2909.2,2908.9,0.00932014]
[1644670472922,1.01657193,2909.2,2908.6,0.01612666]
[1644670473172,1.01657193,2909.2,2908.9,0.00932009]
[1644670473578,1.01657193,2909.2,2908.5,0.54691997]
[1644670473771,1.01657193,2909.2,2908.6,0.00292071]
[1644670474070,0.1718,2909.4,2908.6,0.00292071]
[1644670474273,0.4718,2909.4,2908.6,0.00292071]
[1644670474475,0.1718,2909.4,2908.0,0.00292071]
[1644670475478,0.1718,2909.4,2908.4,0.00301852]
[1644670476477,0.61096991,2908.9,2908.0,0.00292071]
[1644670476677,0.61096991,2908.9,2908.4,0.00301852]
[1644670476925,0.3,2908.9,2908.4,0.00301852]
[1644670477316,0.1718,2909.4,2908.4,0.00301852]
[1644670477717,0.1718,2909.4,2908.0,0.00292071]
[1644670477918,0.00931921,2909.1,2908.4,0.00932153]
[1644670478118,0.66595891,2909.0,2908.4,0.00932153]
[1644670478318,0.96595891,2909.0,2908.4,0.00932153]
[1644670478724,0.3,2909.0,2908.4,0.00932153]
[1644670478916,0.3,2909.0,2908.0,0.00292071]
[1644670479116,0.30931878,2909.1,2908.4,0.00932109]
[1644670480120,0.3,2909.1,2908.0,0.00292071]
[1644670480321,0.00931889,2909.1,2908.4,0.0093212]
[1644670480967,0.00931889,2909.1,2908.4,0.01224191]
[1644670481372,0.88798866,2909.2,2908.4,0.00292071]
[1644670481568,0.00931889,2909.1,2908.4,0.01224191]
[1644670481769,0.30931889,2909.1,2908.4,0.01224191]
[1644670482168,0.30931889,2909.1,2908.5,0.491]
[1644670482368,0.30931889,2909.1,2908.6,0.00292071]
[1644670482569,0.3,2909.1,2908.6,0.00292071]
[1644670482768,0.009319,2909.1,2908.6,0.00292071]
[1644670482968,0.309319,2909.1,2908.6,0.00292071]
[1644670483169,0.009319,2909.1,2908.6,0.00292071]
[1644670483668,0.94617987,2909.2,2908.6,0.00292071]
[1644670483875,0.0093191,2909.1,2908.6,0.00292071]
[1644670484415,0.3093191,2909.1,2908.6,0.00292071]
[1644670484628,0.0093191,2909.1,2908.6,0.00292071]
[1644670484824,3.6718,2910.0,2908.7,0.491]
[1644670485021,3.6718,2910.0,2908.9,0.66442679]
[1644670485022,0.67165398,2909.9,2908.9,0.66442679]
[1644670485219,0.67165398,2909.9,2908.5,0.3]
[1644670485220,0.0093191,2909.1,2909.0,0.491]
[1644670486019,0.67165398,2909.9,2909.0,0.491]
[1644670486221,0.97165398,2909.9,2909.1,0.00292071]
[1644670486426,0.00931916,2909.2,2909.1,0.00292071]
[1644670486620,0.00931916,2909.2,2909.1,0.491]
[1644670487221,0.3,2909.9,2909.1,0.791]
[1644670487425,0.54388955,2909.8,2909.1,0.79392071]
[1644670487621,0.00931905,2909.3,2909.2,0.00292071]
[1644670487826,0.00931905,2909.3,2909.2,0.491]
[1644670488021,0.54388955,2909.8,2909.2,0.491]
[1644670488466,0.54388955,2909.8,2909.3,0.3]
[1644670488664,0.54388955,2909.8,2909.3,0.791]
[1644670488865,0.3,2909.9,2909.3,0.791]
[1644670489072,0.3,2909.9,2909.3,0.491]
[1644670489266,3.74700357,2910.1,2909.1,0.00292071]
[1644670489471,0.1718,2909.8,2909.1,0.00292071]
[1644670489668,0.1718,2910.0,2908.9,0.491]
[1644670489869,0.1718,2909.7,2909.0,0.00292071]
[1644670490069,0.0063049,2909.7,2909.0,0.00292071]
[1644670490270,0.53495463,2909.7,2909.0,0.00292071]
[1644670490470,0.0063049,2909.7,2909.0,0.00292071]
[1644670490969,0.1718,2909.9,2909.0,0.00292071]
[1644670491172,0.00931885,2909.5,2909.0,0.00292071]
[1644670492016,0.96585741,2909.7,2909.0,0.00292071]
[1644670492419,0.00931879,2909.4,2909.0,0.00292071]
[1644670492819,0.00931879,2909.4,2909.1,0.491]
[1644670493019,0.00931879,2909.4,2909.1,0.49392071]
[1644670493225,5.0688,2910.2,2909.1,0.79392071]
[1644670493420,5.0688,2910.2,2909.1,0.791]
[1644670493620,5.0688,2910.2,2909.2,0.00292071]
[1644670493621,0.00931879,2909.4,2909.2,0.00292071]
[1644670493820,0.00931879,2909.4,2909.3,0.491]
[1644670494420,0.64612848,2909.9,2909.3,0.491]
[1644670494625,5.3688,2910.2,2909.3,0.49392071]
[1644670494823,0.00931885,2909.5,2909.3,0.49392071]
[1644670495024,0.00931885,2909.5,2909.3,0.491]
[1644670495528,0.00931885,2909.5,2909.3,1.19256812]
[1644670495768,0.29,2910.2,2909.3,1.49256812]
[1644670495972,1.879e-05,2909.5,2909.4,5.0]
[1644670496174,0.1718,2910.3,2909.5,3.35]
[1644670496371,0.1718,2910.3,2909.7,6.142]
[1644670496571,0.1718,2910.3,2909.8,0.491]
[1644670496776,0.1718,2910.3,2909.8,1.491]
[1644670497371,0.1718,2910.3,2909.9,0.62796314]
[1644670497669,0.1718,2910.3,2910.0,0.491]
[1644670498271,0.17809094,2910.3,2910.0,0.491]
[1644670499276,0.1718,2910.3,2910.0,0.491]
[1644670499521,0.18111801,2910.3,2910.1,0.85902]
[1644670499723,0.18111801,2910.3,2910.2,0.491]
[1644670500524,0.1718,2910.3,2910.2,0.491]
[1644670503569,0.00931791,2910.4,2910.2,0.491]
[1644670504172,0.71690753,2910.9,2910.2,0.491]
[1644670504375,0.00931786,2910.4,2910.2,0.491]
[1644670504582,0.00931786,2910.4,2909.9,0.01429555]
[1644670504775,1.46227089,2910.3,2909.9,0.01429555]
[1644670505175,1.93407089,2910.3,2909.9,0.01429555]
[1644670505374,0.4718,2910.3,2910.2,0.01753546]
[1644670505576,0.03507091,2910.1,2909.4,1.6062]
[1644670505775,0.03507091,2910.1,2909.4,1.6562]
[1644670506276,0.03507091,2910.1,2909.4,1.4844]
[1644670507018,0.03507091,2910.1,2909.3,1.31224892]
[1644670507019,0.00932615,2909.9,2909.3,1.31224892]
[1644670507617,0.00932615,2909.9,2909.3,1.30292071]
[1644670507819,0.03507091,2910.1,2909.3,1.30292071]
[1644670508022,0.00932631,2909.7,2909.3,1.3122486]
[1644670508826,0.03507091,2910.1,2909.3,1.30292071]
[1644670509223,0.03507091,2910.1,2909.3,1.31224838]
[1644670509224,0.00932641,2909.6,2909.3,1.31224838]
[1644670509424,0.00932641,2909.6,2909.3,1.18404838]
[1644670509625,0.00932641,2909.6,2909.3,0.18404838]
[1644670510025,0.03507091,2910.1,2909.3,0.17472071]
[1644670510425,0.0093263,2909.6,2909.3,0.18404827]
[1644670510866,0.0093263,2909.6,2909.3,0.48404827]
[1644670511264,0.03507091,2910.1,2909.3,1.48404827]
[1644670511465,0.03507091,2910.1,2909.3,1.47472071]
[1644670511665,0.0086707,2909.6,2909.4,0.491]
[1644670512476,0.03507091,2910.1,2909.4,0.491]
[1644670512870,0.0086708,2909.6,2909.4,0.491]
[1644670513872,0.03507091,2910.1,2909.4,0.491]
[1644670514070,0.0086708,2909.6,2909.4,0.491]
[1644670514921,0.03507091,2910.1,2909.4,0.491]
[1644670515127,0.0086708,2909.6,2909.4,0.491]
[1644670516122,0.03507091,2910.1,2909.4,0.491]
[1644670516423,0.00873407,2909.6,2909.4,0.491]
[1644670517223,3.407e-05,2909.6,2909.4,6.633]
[1644670517423,0.03507091,2910.1,2909.4,6.633]
[1644670517424,0.03507091,2910.1,2909.5,6.1345305]
[1644670517628,0.03507091,2910.1,2909.7,6.142]
[1644670517823,0.03507091,2910.1,2909.8,0.491]
[1644670518023,0.03507091,2910.1,2909.8,1.35105373]
[1644670518272,0.03507091,2910.1,2909.8,2.65105373]
[1644670518471,0.03006091,2910.9,2909.9,3.35]
[1644670518675,0.03006091,2910.9,2910.1,6.142]
[1644670518972,0.03006091,2910.9,2910.2,0.9626]
[1644670519172,0.03006091,2910.9,2910.2,1.9626]
[1644670519874,0.03006091,2910.9,2910.7,0.56998478]
[1644670520075,0.03006091,2910.9,2910.8,0.491]
[1644670525023,0.03006091,2910.9,2910.8,0.50525932]
[1644670526270,1.01051863,2910.7,2910.3,6.9173]
[1644670526472,0.001,2910.6,2910.4,0.491]
[1644670526673,0.001,2910.6,2910.5,0.491]
[1644670527274,0.00926327,2910.6,2910.5,0.491]
[1644670528079,0.001,2910.6,2910.5,0.491]
[1644670529537,0.001,2910.6,2909.9,0.491]
[1644670529739,0.301,2910.6,2909.9,0.491]
[1644670529936,0.301,2910.6,2910.5,0.00829805]
[1644670530137,1.76314336,2910.6,2910.5,0.00829805]
[1644670530642,1.76314336,2910.6,2909.9,0.491]
[1644670530837,0.30192353,2910.6,2909.9,1.35005]
[1644670531240,0.30192353,2910.6,2909.9,1.65005]
[1644670531437,0.30192353,2910.6,2909.9,2.65005]
[1644670532040,0.00825936,2910.4,2909.9,2.65005]
[1644670533042,0.00192353,2910.6,2909.9,2.65005]
[1644670533272,0.00825973,2910.3,2909.9,2.65005]
[1644670533667,0.00825973,2910.3,2909.9,1.791]
[1644670533869,0.00825973,2910.3,2909.9,2.65005]
[1644670534069,0.00825973,2910.3,2909.9,1.791]
[1644670534367,0.00826005,2910.2,2909.9,1.791]
[1644670535473,0.00192353,2910.6,2909.9,1.791]
[1644670535672,0.0082601,2910.2,2909.9,1.791]
[1644670536673,0.00192353,2910.6,2909.9,1.791]
[1644670536928,0.00826009,2910.2,2909.9,0.491]
[1644670537719,0.00192353,2910.6,2909.9,0.491]
[1644670538122,0.00826007,2910.2,2909.9,0.491]
[1644670538925,0.00192353,2910.6,2909.9,0.491]
[1644670539124,1.46404489,2910.6,2909.9,0.491]
[1644670539327,0.00826007,2910.2,2909.9,0.491]
[1644670540133,0.00192353,2910.6,2909.9,0.491]
[1644670540330,0.00826007,2910.2,2909.9,0.491]
[1644670540784,0.00918093,2910.2,2909.9,0.491]
[1644670541383,0.00092086,2910.2,2909.9,0.491]
[1644670541584,0.00918093,2910.2,2909.9,0.491]
[1644670541785,0.00828093,2910.2,2909.9,1.35004]
[1644670542284,0.00828093,2910.2,2909.9,2.35004]
[1644670542685,2.086e-05,2910.2,2909.9,2.35004]
[1644670542886,0.00828093,2910.2,2909.9,2.35004]
[1644670543691,2.086e-05,2910.2,2909.9,2.35004]
[1644670544086,0.00828093,2910.2,2909.9,2.35004]
[1644670544288,0.00828093,2910.2,2910.1,0.64641624]
[1644670544528,0.00828093,2910.2,2910.1,1.13741624]
[1644670544925,2.086e-05,2910.2,2910.1,1.13741624]
[1644670545128,2.086e-05,2910.2,2910.1,0.491]
[1644670546026,0.00825998,2910.3,2910.1,0.491]
[1644670547327,0.0008449,2910.4,2910.1,1.19348718]
[1644670547526,0.001,2910.6,2910.4,0.0006475]
[1644670548775,0.00925967,2910.6,2910.4,0.0006475]
[1644670549779,0.001,2910.6,2910.4,0.0006475]
[1644670549979,0.00925967,2910.6,2910.4,0.0006475]
[1644670550180,0.30925967,2910.6,2910.4,0.0006475]
[1644670550382,0.00925967,2910.6,2910.4,0.0006475]
[1644670551078,0.001,2910.6,2910.4,0.0006475]
[1644670551279,0.00925964,2910.6,2910.4,0.0006475]
[1644670552123,0.001,2910.6,2910.4,0.0006475]
[1644670552627,0.00925962,2910.6,2910.4,0.0006475]
[1644670553428,0.001,2910.6,2910.4,0.0006475]
[1644670553629,0.00925962,2910.6,2910.4,0.0006475]
[1644670553831,1.46215521,2910.5,2910.4,0.0006475]
[1644670554035,1.76315521,2910.5,2910.4,0.0006475]
[1644670554230,1.76315521,2910.5,2910.4,0.4916475]
[1644670554631,1.76307706,2910.5,2910.4,0.4916475]
[1644670555232,0.301,2910.5,2910.4,0.4916475]
[1644670555432,0.3,2910.5,2910.4,0.4916475]
[1644670555671,0.30925966,2910.6,2910.4,0.4916475]
[1644670555872,1.46205245,2910.5,2910.4,0.4916475]
[1644670556074,1.46305245,2910.5,2910.4,0.4916475]
[1644670556272,1.76305245,2910.5,2910.4,0.4916475]
[1644670559278,1.46305245,2910.5,2910.4,0.4916475]
[1644670559733,0.001,2910.5,2910.4,0.4916475]
[1644670559929,1.46305245,2910.5,2910.4,0.4916475]
[1644670560731,1.46387101,2910.5,2910.4,0.4916475]
[1644670561031,0.00181856,2910.5,2910.4,0.4916475]
[1644670561232,1.46387101,2910.5,2910.4,0.4916475]
[1644670562033,0.00181856,2910.5,2910.4,0.4916475]
[1644670562234,1.46387101,2910.5,2910.4,0.4916475]
[1644670562432,1.46382832,2910.5,2910.4,0.4916475]
[1644670562833,1.76382832,2910.5,2910.4,0.4916475]
[1644670564881,1.76382832,2910.5,2910.4,0.0006475]
[1644670569125,5.53742972,2910.5,2910.4,0.0006475]
[1644670569324,6.18398456,2910.5,2910.4,0.0006475]
[1644670569530,1.93542832,2910.5,2910.4,0.0006475]
[1644670570128,2.79750144,2910.5,2910.4,0.0006475]
[1644670570325,6.93542832,2910.5,2910.4,0.0006475]
[1644670572172,7.58241588,2910.5,2910.4,0.0006475]
[1644670572973,6.93542832,2910.5,2910.4,0.0006475]
[1644670573174,7.58242139,2910.5,2910.4,0.0006475]
[1644670573377,7.41082139,2910.5,2910.4,0.0006475]
[1644670573873,1.76382832,2910.5,2910.4,0.0006475]
[1644670574077,2.41082139,2910.5,2910.4,0.0006475]
[1644670574722,1.76382832,2910.5,2910.4,0.0006475]
[1644670575422,2.41082139,2910.5,2910.4,0.0006475]
[1644670576023,1.76382832,2910.5,2910.4,0.0006475]
[1644670576222,1.93542832,2910.5,2910.4,0.0006475]
[1644670578467,1.63542832,2910.5,2910.4,0.0006475]
[1644670580273,1.93542832,2910.5,2910.4,0.0006475]
[1644670581475,1.76382832,2910.5,2910.4,0.0006475]
[1644670583732,1.76282506,2910.5,2910.4,0.0006475]
[1644670584128,0.00181856,2910.5,2910.4,0.4916475]
[1644670584328,1.46293263,2910.5,2910.4,0.4916475]
[1644670584530,1.46393263,2910.5,2910.4,0.4916475]
[1644670584729,0.00181856,2910.5,2910.4,0.4916475]
[1644670584931,0.00081856,2910.5,2910.4,0.4916475]
[1644670585131,0.00181856,2910.5,2910.4,0.4916475]
[1644670585438,1.1993,2911.1,2910.5,2.3]
[1644670585678,1.46205149,2911.0,2910.6,0.491]
[1644670585875,1.46205149,2910.9,2910.6,3.89098438]
[1644670586077,0.0038559,2911.3,2910.6,3.89098438]
[1644670586475,0.0038559,2911.3,2910.6,0.491]
[1644670586676,0.0038559,2911.3,2910.6,1.15706452]
[1644670587677,0.0038559,2911.3,2910.6,4.37766891]
[1644670587875,1.46579546,2911.3,2910.6,1.15706452]
[1644670588082,1.46579546,2911.3,2910.6,4.3833861]
[1644670588476,0.00932037,2911.1,2910.6,4.3833861]
[1644670588678,1.46193956,2911.0,2910.6,4.42289386]
[1644670589078,1.76193956,2911.0,2910.6,4.42289386]
[1644670589278,0.00932037,2911.1,2910.6,4.42289386]
[1644670589529,1.46193343,2911.0,2910.6,4.42289386]
[1644670589732,0.00932053,2910.9,2910.6,3.75682934]
[1644670590129,0.00932053,2910.9,2910.7,0.0187154]
[1644670590328,0.00932053,2910.9,2910.8,0.491]
[1644670590739,0.0038559,2911.3,2910.8,0.491]
[1644670590932,0.00932048,2911.0,2910.8,0.491]
[1644670591932,0.0038559,2911.4,2910.8,0.491]
[1644670592233,0.00932043,2911.0,2910.8,0.491]
[1644670593185,0.61520544,2911.4,2910.8,0.491]
[1644670593388,0.00932043,2911.0,2910.8,0.491]
[1644670594184,0.0038559,2911.3,2910.4,0.0006475]
[1644670594185,1.0194308,2910.6,2910.4,0.0006475]
[1644670594384,0.001,2910.5,2910.4,0.0006475]
[1644670594987,1.0194308,2910.6,2910.4,0.0006475]
[1644670595187,1.3194308,2910.6,2910.4,0.0006475]
[1644670595587,0.51869862,2910.5,2910.4,0.0006475]
[1644670595787,0.69029862,2910.5,2910.4,0.0006475]
[1644670598031,0.51869862,2910.5,2910.4,0.0006475]
[1644670600133,0.51869862,2910.5,2910.4,0.01825386]
[1644670600535,0.69029862,2910.5,2910.4,0.01825386]
[1644670602975,0.51869862,2910.5,2910.4,0.01825386]
[1644670603780,0.36869862,2910.5,2910.4,0.01825386]
[1644670604427,1.3194308,2910.6,2910.4,0.01825386]
[1644670604626,1.3204308,2910.6,2910.4,0.01825386]
[1644670604827,0.001,2910.5,2910.4,0.01825386]
[1644670605027,0.001,2910.5,2910.4,0.0006475]
[1644670605426,0.71704777,2910.5,2910.4,0.0006475]
[1644670608373,0.63115413,2910.5,2910.4,0.0006475]
[1644670613522,0.63215413,2910.5,2910.4,0.0006475]
[1644670615426,2.09441967,2910.5,2910.4,0.0006475]
[1644670615874,1.46326554,2910.5,2910.4,0.0006475]
[1644670616682,0.001,2910.5,2910.4,0.0006475]
[1644670617077,0.001,2910.5,2910.4,0.4916475]
[1644670618679,1.46313544,2910.5,2910.4,0.4916475]
[1644670618978,0.001,2910.5,2910.4,0.4916475]
[1644670619182,1.46313635,2910.5,2910.4,0.4916475]
[1644670620635,0.001,2910.5,2910.4,0.4916475]
[1644670623374,1.456e-05,2910.7,2910.6,3.35]
[1644670623582,2.19303603,2911.3,2910.6,3.35]
[1644670623583,0.20694945,2911.5,2910.7,3.35]
[1644670623779,0.03524945,2911.5,2911.1,6.142]
[1644670623976,0.03524945,2911.5,2911.2,0.491]
[1644670624176,0.03524945,2911.5,2911.2,1.6626]
[1644670624384,1.83899307,2912.4,2911.3,0.58318591]
[1644670624576,1.83899307,2912.4,2911.6,0.85849]
[1644670624777,0.63475998,2912.2,2911.4,1.71696]
[1644670624977,0.63475998,2912.2,2911.5,0.491]
[1644670625176,0.80635998,2912.2,2911.5,0.491]
[1644670625376,0.80635998,2912.2,2911.5,0.791]
[1644670625579,1.45335305,2912.2,2911.5,0.491]
[1644670625779,0.00628559,2912.0,2911.5,0.491]
[1644670626778,0.1716,2912.3,2911.5,0.491]
[1644670627032,0.00931954,2911.9,2911.5,0.491]
[1644670627227,0.00931954,2911.9,2911.6,3.28139049]
[1644670627430,0.00931954,2911.9,2911.7,0.491]
[1644670627927,0.4716,2912.3,2911.7,0.491]
[1644670628131,0.00931949,2911.9,2911.7,0.491]
[1644670629228,0.1726,2912.3,2911.7,0.491]